Cogmind - Beta 10.2 @@@ ROGUE MODE // 2021.01.03 @ 04:52:32 Player: Wyvric Result: Destroyed by Enhanced Grunt with Neutron Cannon Performance ------------- Evolutions (3) 1500 Regions Visited (7) 1400 Robots Destroyed (42) 210 Value Destroyed (1271) 1271 Prototype IDs (217) 4340 Alien Tech Used (0) 0 Bonus (3300) 3300 TOTAL SCORE: 12021 Bonus ------- Met Data Miner 300 Used Data Conduit 3000 Cogmind --------- Core Integrity 0/700 Matter 280/300 Energy 51/100 System Corruption 0% Temperature Cool (18) Movement Rolling (120) Ox2 Location -7/Data Miner Parts ------- > --- POWER (1) -------- (None) > --- PROPULSION (2) --- Armored Huge Wheel > --- UTILITY (6) ------ Large Storage Unit Large Storage Unit Large Storage Unit Hardened Light Armor Plating Hardened Light Armor Plating > --- WEAPON (4) ------- Makeshift Spear > --- INVENTORY (22) --- Deuterium Engine Makeshift Leg Makeshift Leg Makeshift Leg Medium Storage Unit Medium Storage Unit Large Storage Unit Large Storage Unit High-capacity Storage Unit High-capacity Storage Unit Hacking Suite Makeshift Hacking Suite System Mapper Makeshift System Shield Makeshift System Shield Ghost Barrier Quantum Router Dynamic Insulation System System Backup Module Improved Field Recycling Unit (20) Peak State ------------ > --- POWER ------------ Light Nuclear Core > --- PROPULSION ------- Armored Huge Wheel > --- UTILITY ---------- Medium Storage Unit Large Storage Unit Large Storage Unit Large Storage Unit Enhanced Optical Array Hardened Light Armor Plating > --- WEAPON ----------- Flak Gun Mini Assault Cannon Makeshift Spear > --- INVENTORY -------- Deuterium Engine Makeshift Leg Makeshift Leg Makeshift Leg Armored Huge Wheel Medium Storage Unit Medium Storage Unit Large Storage Unit Large Storage Unit High-capacity Storage Unit High-capacity Storage Unit Hardened Light Armor Plating Hardened Light Armor Plating Hardened Light Armor Plating Hacking Suite Makeshift Hacking Suite System Mapper Makeshift System Shield Makeshift System Shield Makeshift System Shield Ghost Barrier Quantum Router Dynamic Insulation System System Backup Module Improved Field Recycling Unit [Rating: 43] Favorites ----------- Power Ion Engine Engine Ion Engine Power Core Nuclear Core Propulsion Armored Huge Wheel Treads Light Treads Leg Aluminum Leg Wheel Armored Huge Wheel Utility Medium Storage Unit Device Improved Field Recycling Unit Storage Medium Storage Unit Processor Advanced Targeting Computer Protection Light Armor Plating Weapon Mini Assault Cannon Energy Gun Small Laser Energy Cannon Advanced Beam Cannon Ballistic Gun Flak Gun Ballistic Cannon Mini Assault Cannon Piercing Weapon Makeshift Spear Build | -11 -10 -9 -8 -7 -7 -7 -7 ------- Run | Scr Mat Mat Mat Fac Low Low Dat Slots Evolved 6 | . . 2 2 2 . . . Power . | . . . . . . . . Propulsion . | . . . . . . . . Utility 4 | . . 2 . 2 . . . Weapon 2 | . . . 2 . . . . Parts Attached 79 | 6 6 11 5 22 8 16 5 Power 7 | 1 . 2 . 2 1 1 . Engine 3 | 1 . 2 . . . . . Core 4 | . . . . 2 1 1 . Reactor . | . . . . . . . . Propulsion 15 | 2 1 3 . 7 1 . 1 Treads 6 | 2 1 1 . 2 . . . Leg 2 | . . 2 . . . . . Wheel 7 | . . . . 5 1 . 1 Hover . | . . . . . . . . Flight . | . . . . . . . . Utility 32 | 1 2 2 . 5 6 12 4 Device 11 | . . . . 4 2 5 . Storage 10 | 1 2 2 . . 2 2 1 Processor 2 | . . . . . 1 1 . Hackware . | . . . . . . . . Protection 9 | . . . . 1 1 4 3 Artifact . | . . . . . . . . Weapon 25 | 2 3 4 5 8 . 3 . Energy Gun 5 | 1 2 1 1 . . . . Energy Cannon 2 | . . . 2 . . . . Ballistic Gun 7 | 1 . 1 2 2 . 1 . Ballistic Cannon 10 | . 1 2 . 6 . 1 . Launcher . | . . . . . . . . Special Weapon . | . . . . . . . . Impact Weapon . | . . . . . . . . Slashing Weapon . | . . . . . . . . Piercing Weapon 1 | . . . . . . 1 . Special Melee Weapon . | . . . . . . . . Unidentified Prototypes 3 | . . 1 1 1 . . . Parts Lost 36 | . . 6 1 16 4 3 6 Power 5 | . . 1 . 1 1 1 1 Propulsion 10 | . . 2 . 7 . . 1 Utility 7 | . . . . 2 1 2 2 Weapon 14 | . . 3 1 6 2 . 2 Highest Loss Streak 16 | . . 4 1 16 3 2 6 Average Slot Usage (%) 85 | . 98 89 99 91 80 75 81 Engine 2 | . 14 10 9 1 . . . Core 4 | . . . . 4 7 6 5 Treads 3 | . 27 21 . . . . . Leg 4 | . . . 18 10 . . . Wheel 4 | . . . . 1 7 7 7 Device 7 | . . . . 7 11 9 . Storage 28 | . 26 35 36 30 25 23 28 Processor 3 | . . . . . 7 3 5 Protection 1 | . . . . 4 . 3 9 Energy Gun 1 | . 14 2 2 . . . . Energy Cannon 3 | . . . 12 10 . . . Ballistic Gun 4 | . 12 8 15 2 . 5 7 Ballistic Cannon 12 | . 1 10 4 13 20 6 5 Piercing Weapon 1 | . . . . . . 6 7 Naked Turns . | . . . . . . . . Heaviest Build 76 | 12 26 44 49 70 73 75 76 Greatest Support 40 | 40 40 40 20 40 28 28 28 Greatest Overweight (x) 4 | . 1 2 2 4 2 2 2 Average Overweight (x) 1 | . . . 2 2 1 1 2 Largest Inventory Capacity 26 | 6 12 20 20 20 24 24 26 Average Capacity 18 | 5 11 16 20 20 19 18 23 Most Carried 26 | 4 8 18 20 20 23 24 26 Average Carried 16 | 3 6 11 15 19 17 17 23 Final Capacity 24 | 6 12 20 20 20 18 24 22 Final Carried 24 | 4 8 13 20 20 14 24 20 Class Distribution -------------------- 49% | Mutant 31% | Hauler-Mutant 10% | Hauler-Tank 6% | Hauler-Gunner Dominant Class ---------------- Mutant | -10/Materials Hauler-Mutant | -9/Materials Hauler-Gunner | -8/Materials Hauler-Tank | -7/Factory Mutant | -7/Lower Caves Mutant | -7/Lower Caves Hauler-Mutant | -7/Data Miner Resources | -11 -10 -9 -8 -7 -7 -7 -7 ----------- Run | Scr Mat Mat Mat Fac Low Low Dat Matter Collected 1412 | 180 18 219 71 294 252 358 20 Remotely . | . . . . . . . . Salvage Created 1153 | . 18 261 78 209 130 433 24 Parts 71 | . 4 14 13 14 8 14 4 Haulers Intercepted 1 | . . 1 . . . . . Recyclers Shooed 1 | . . . . 1 . . . Parts Field Recycled 29 | . . . . 9 10 10 . Retrieved Matter 297 | . . . . 154 83 60 . Parts Self-Destructed 19 | . . . . . 9 10 . Prevented . | . . . . . . . . Kills | -11 -10 -9 -8 -7 -7 -7 -7 ------- Run | Scr Mat Mat Mat Fac Low Low Dat Combat Hostiles Destroyed 36 | . . 8 5 8 7 8 . Melee 1 | . . . . . . 1 . Guns 10 | . . 5 3 . . 2 . Cannons 24 | . . 3 2 7 7 5 . AOE 1 | . . . . 1 . . . Classes Destroyed 10 | . 1 4 . 2 1 2 . Worker 1 | . . . . 1 . . . Builder 1 | . . . . 1 . . . Hauler 1 | . . 1 . . . . . Operator 2 | . 1 1 . . . . . Swarmer 18 | . . 4 4 3 6 1 . Grunt 9 | . . 2 . 2 . 5 . Brawler 1 | . . . . . . 1 . Sentry 8 | . . 2 1 3 1 1 . Packrat 1 | . . . . . . 1 . Samaritan 1 | . . . . . 1 . . Best Kill Streak 5 | . 1 5 4 3 3 4 1 Combat Bots Only 4 | . . 4 4 2 3 4 . Max Kills in Single Turn 2 | . 1 2 1 2 1 1 1 Gunslinging . | . . . . . . . . Exploded 1 | . . . . 1 . . . Melee 1 | . . . . . . 1 . Uniques/NPCs Destroyed 1 | . . . . . . . 1 Data Miner (-7/Data Miner) Combat | -11 -10 -9 -8 -7 -7 -7 -7 -------- Run | Scr Mat Mat Mat Fac Low Low Dat Damage Taken 6143 | . 199 601 334 2443 760 558 1248 Core 774 | . 35 30 7 380 88 51 183 Absorbed by Shields 228 | . . . . 228 . . . Core Remaining (%) 94 | 100 86 92 98 . . . . Volleys Fired 111 | . 4 24 14 29 26 14 . Largest 4 | . 2 2 4 4 3 2 . Hottest 232 | . 60 60 179 232 140 76 . Shots Fired 219 | . 7 48 45 63 34 22 . Gun 72 | . 6 28 27 3 . 8 . Cannon 147 | . 1 20 18 60 34 14 . Launcher . | . . . . . . . . Special . | . . . . . . . . Kinetic 192 | . 4 44 31 57 34 22 . Thermal 22 | . 2 . 14 6 . . . Explosive . | . . . . . . . . Electromagnetic 5 | . 1 4 . . . . . Robot Hit Streak 20 | . 1 20 5 8 14 15 . Robot Miss Streak 9 | . 2 1 5 9 5 5 . Penetration Max . | . . . . . . . . Secondary Targets . | . . . . . . . . Shots Hit Robots 160 | . 2 37 19 43 29 29 1 Core Hits 87 | . 1 15 6 28 17 19 1 Critical Hits 5 | . . . . 3 2 . . Critical Kills 2 | . . . . 2 . . . Critical Parts Destroyed 3 | . . . . 1 2 . . Melee Attacks 14 | . . . . . . 13 1 Impact . | . . . . . . . . Slashing . | . . . . . . . . Piercing 14 | . . . . . . 13 1 Sneak Attacks 1 | . . . . . . . 1 Combat Hostiles . | . . . . . . . . Follow-up Attacks . | . . . . . . . . Damage Inflicted 3855 | . 18 553 308 1514 639 759 64 Guns 579 | . 18 230 119 35 . 177 . Cannons 2296 | . . 318 132 879 639 328 . Explosions 616 | . . . 57 559 . . . Melee 318 | . . . . . . 254 64 Ramming 46 | . . 5 . 41 . . . Kinetic 2646 | . . 504 167 831 639 505 . Thermal 726 | . . . 84 642 . . . Explosive 57 | . . . 57 . . . . Electromagnetic 62 | . 18 44 . . . . . Impact . | . . . . . . . . Slashing . | . . . . . . . . Piercing 318 | . . . . . . 254 64 Highest Corruption 3 | . 1 . . . . 3 . Average Corruption 1 | . 1 . . . . 1 . Corruption Purged 3 | . . . . . . 3 . Effects 1 | . . . . . . 1 . Data Loss (minor) 1 | . . . . . . 1 . Overload Shots . | . . . . . . . . Overflow Damage 215 | . . 2 44 154 15 . . Projectiles 17 | . . 2 . . 15 . . Explosions 198 | . . . 44 154 . . . Melee . | . . . . . . . . Knockbacks 24 | . . 2 2 9 9 2 . Impact . | . . . . . . . . Kinetic 23 | . . 2 2 8 9 2 . Secondary 1 | . . . . 1 . . . Self-Inflicted Damage 232 | . . . 113 119 . . . Shots 2 | . . . 1 1 . . . Rammed 11 | . . 2 . 9 . . . Targets Rammed 11 | . . 2 . 9 . . . Kicked . | . . . . . . . . Crushed . | . . . . . . . . Highest Temperature 315 | . . 247 290 315 194 17 . Average Temperature 132 | . . 64 158 155 112 9 . Received Heat Transfer 1420 | . 54 201 18 733 72 180 162 Effects 4 | . . . 4 . . . . Energy Bleed 1 | . . . 1 . . . . Interference 3 | . . . 3 . . . . Siege Activations . | . . . . . . . . Robots Corrupted . | . . . . . . . . Combat Hostiles . | . . . . . . . . Parts Fried . | . . . . . . . . Impact Corruptions . | . . . . . . . . Robots Melted . | . . . . . . . . Combat Hostiles . | . . . . . . . . Parts Melted . | . . . . . . . . Heat Transferred 709 | . . . 161 548 . . . Parts Sabotaged . | . . . . . . . . Parts Stolen . | . . . . . . . . Parts Stripped . | . . . . . . . . Power Chain Reactions . | . . . . . . . . Missiles Intercepted . | . . . . . . . . Alert | -11 -10 -9 -8 -7 -7 -7 -7 ------- Run | Scr Mat Mat Mat Fac Low Low Dat Peak Influence 267 | . 17 267 199 122 . . . Initial 100 | . . 7 100 . . . . Average 55 | . 4 122 103 27 . . . Maximum Alert Level 1 | . . 1 . . . . . Low Security (%) 95 | 100 100 70 100 100 . . . Level 1 4 | . . 29 . . . . . Level 2 . | . . . . . . . . Level 3 . | . . . . . . . . Level 4 . | . . . . . . . . Level 5 . | . . . . . . . . High Security . | . . . . . . . . Max Security . | . . . . . . . . Squads Dispatched 8 | . 2 3 . 3 . . . Investigation 1 | . . . . 1 . . . Extermination . | . . . . . . . . Reinforcement 7 | . 2 3 . 2 . . . Assault . | . . . . . . . . Garrison . | . . . . . . . . Intercept . | . . . . . . . . Construction Impeded 1 | . . . . 1 . . . Haulers Reinforced . | . . . . . . . . Stealth | -11 -10 -9 -8 -7 -7 -7 -7 --------- Run | Scr Mat Mat Mat Fac Low Low Dat Distress Signals 2 | . . 1 . 1 . . . Communications Jammed . | . . . . . . . . Distress Signals . | . . . . . . . . Times Spotted 65 | . 6 17 8 13 9 8 4 Peak Tracking Total 6 | . 3 6 4 6 4 5 4 Tactical Retreats 3 | . . 2 . 1 . . . Traps | -11 -10 -9 -8 -7 -7 -7 -7 ------- Run | Scr Mat Mat Mat Fac Low Low Dat Traps Triggered 3 | . 3 . . . . . . Indirectly . | . . . . . . . . Trap Hack Attempts . | . . . . . . . . Triggered . | . . . . . . . . Disarmed . | . . . . . . . . Reprogrammed . | . . . . . . . . Reused . | . . . . . . . . Traps Extracted . | . . . . . . . . Installed . | . . . . . . . . Triggered . | . . . . . . . . Machines | -11 -10 -9 -8 -7 -7 -7 -7 ---------- Run | Scr Mat Mat Mat Fac Low Low Dat Machines Disabled 3 | . . . 2 1 . . . Max in Single Turn 2 | . . . 2 1 . . . Garrison Access 1 | . . . . 1 . . . Machines Sabotaged . | . . . . . . . . Garrisons Compromised . | . . . . . . . . Overloaded Fab Kills . | . . . . . . . . Fab Network Shutdowns . | . . . . . . . . Hacking | -11 -10 -9 -8 -7 -7 -7 -7 --------- Run | Scr Mat Mat Mat Fac Low Low Dat Machines Accessed 13 | . 2 1 2 3 . 1 4 Terminals 6 | . 2 1 2 1 . . . Fabricators 1 | . . . . 1 . . . Repair Stations . | . . . . . . . . Recycling Units . | . . . . . . . . Scanalyzers . | . . . . . . . . Garrison Access 1 | . . . . 1 . . . Total Hacks 49 | . 4 2 5 9 . 1 28 Successful 38 | . 2 . 4 3 . 1 28 Failed 11 | . 2 2 1 6 . . . Catastrophic 4 | . 1 1 1 1 . . . Database Lockouts . | . . . . . . . . Manual 8 | . 4 2 1 1 . . . Terminals 13 | . 4 2 5 2 . . . Fabricators 3 | . . . . 3 . . . Repair Stations . | . . . . . . . . Recycling Units . | . . . . . . . . Scanalyzers . | . . . . . . . . Garrison Access 4 | . . . . 4 . . . Terminal Hacks 34 | . 1 . 4 . . 1 28 Record 11 | . . . . . . . 11 Part Schematic 7 | . 1 . . . . . 6 Robot Schematic 8 | . . . . . . . 8 Prototype ID Bank 3 | . . . . . . . 3 Open Door 1 | . . . . . . 1 . Branch Access Points 1 | . . . 1 . . . . Alert Level 1 | . . . 1 . . . . Unreport Threat 2 | . . . 2 . . . . Fabricator Hacks 2 | . . . . 2 . . . Load Schematic 1 | . . . . 1 . . . Build 1 | . . . . 1 . . . Repair Station Hacks . | . . . . . . . . Recycling Unit Hacks . | . . . . . . . . Scanalyzer . | . . . . . . . . Garrison Access Hacks 1 | . . . . 1 . . . Seal Access 1 | . . . . 1 . . . Unauthorized Hacks 1 | . 1 . . . . . . Terminals 1 | . 1 . . . . . . Botnet 1 | . 1 . . . . . . Fabricators . | . . . . . . . . Repair Stations . | . . . . . . . . Recycling Units . | . . . . . . . . Scanalyzers . | . . . . . . . . Garrison Access . | . . . . . . . . Data Cores Recovered 1 | . 1 . . . . . . Used 1 | . 1 . . . . . . Hacking Detections 7 | . 2 1 2 2 . . . Full Trace Events 1 | . . . . 1 . . . Feedback Events . | . . . . . . . . Feedback Blocked . | . . . . . . . . Robot Schematics Acquired 8 | . . . . . . . 8 Robots Built . | . . . . . . . . Matter . | . . . . . . . . Time . | . . . . . . . . Total Robot Build Rating . | . . . . . . . . Part Schematics Acquired 7 | . 1 . . . . . 6 Parts Built 1 | . . . . 1 . . . Matter 102 | . . . . 102 . . . Time 25 | . . . . 25 . . . Total Part Build Rating 1 | . . . . 1 . . . Parts Repaired . | . . . . . . . . Time . | . . . . . . . . Parts Recycled . | . . . . . . . . Recycled Matter . | . . . . . . . . Retrieved Matter . | . . . . . . . . Retrieved Components . | . . . . . . . . Parts Scanalyzed . | . . . . . . . . Part Schematics Acquired . | . . . . . . . . Parts Damaged . | . . . . . . . . Bothacking | -11 -10 -9 -8 -7 -7 -7 -7 ------------ Run | Scr Mat Mat Mat Fac Low Low Dat Used RIF Installer . | . . . . . . . . Robots Hacked . | . . . . . . . . Non-combat . | . . . . . . . . Combat . | . . . . . . . . Robot Hacks Applied . | . . . . . . . . Relay Couplers Released . | . . . . . . . . Robots Rewired . | . . . . . . . . Allies Hacked . | . . . . . . . . Hacks Repelled . | . . . . . . . . Allies | -11 -10 -9 -8 -7 -7 -7 -7 -------- Run | Scr Mat Mat Mat Fac Low Low Dat Total Allies . | . . . . . . . . Largest Group . | . . . . . . . . Highest-Rated Group . | . . . . . . . . Highest-Rated Ally . | . . . . . . . . Total Orders . | . . . . . . . . Ally Attacks . | . . . . . . . . Total Damage . | . . . . . . . . Kills . | . . . . . . . . Allies Corrupted . | . . . . . . . . Allies Melted . | . . . . . . . . Intel | -11 -10 -9 -8 -7 -7 -7 -7 ------- Run | Scr Mat Mat Mat Fac Low Low Dat Robot Analysis Total 115 | . . . . . . . 115 Derelict Logs Recovered 2 | . . . . . 1 1 . Drone Launches . | . . . . . . . . Drone Recoveries . | . . . . . . . . Exploration | -11 -10 -9 -8 -7 -7 -7 -7 ------------- Run | Scr Mat Mat Mat Fac Low Low Dat Turns Passed 4436 | 119 253 345 445 889 1407 859 119 Spaces Moved 2051 | 59 143 139 210 383 531 499 87 Core 3 | 3 . . . . . . . Treads 353 | 56 143 138 . 16 . . . Legs 480 | . . 1 210 269 . . . Wheels 1215 | . . . . 98 531 499 87 Hover . | . . . . . . . . Flight . | . . . . . . . . Fastest Speed 50 | 50 160 160 180 100 110 110 120 Average Speed 141 | 154 160 170 180 179 117 110 120 Slowest Speed 220 | 160 180 200 180 220 120 120 120 Overloaded Moves . | . . . . . . . . Propulsion Burnouts . | . . . . . . . . Robots Hopped . | . . . . . . . . Cave-ins Triggered . | . . . . . . . . Exploration Rate (%) 38 | 6 43 19 24 11 59 62 81 Regions Visited 7 Branch Regions 3 Pre-discovered Areas 30 | . . . . . . . 30 Known Exits Taken 1 | . . . . . 1 . . Unknown Exits Taken 6 | 1 1 1 1 1 . 1 . Scrap Searched 6 | . . . . . 1 5 . Spaces Dug . | . . . . . . . . Terrain Destroyed 73 | . . . 24 44 4 1 . Melee . | . . . . . . . . Projectile 11 | . . . . 6 4 1 . AOE 62 | . . . 24 38 . . . Terrain Rammed . | . . . . . . . . Walls Destroyed . | . . . . . . . . Machines Disabled . | . . . . . . . . Actions | -11 -10 -9 -8 -7 -7 -7 -7 --------- Run | Scr Mat Mat Mat Fac Low Low Dat Total 3366 | 86 158 196 249 522 1286 769 100 Wait 984 | 14 1 8 4 53 701 202 1 Move 2044 | 58 142 138 209 382 530 498 87 Hop . | . . . . . . . . Pick Up 80 | 7 4 12 12 16 9 16 4 Fast Attach 27 | 4 4 2 1 8 . 7 1 Attach 33 | 2 . 7 4 13 2 4 1 Detach 5 | . . . 2 . . 3 . Swap 19 | . 2 2 . 1 6 5 3 Drop 38 | 1 1 1 3 11 12 7 2 Fire 111 | . 4 24 14 29 26 14 . Melee 14 | . . . . . . 13 1 Ram 3 | . . . . 3 . . . Kick . | . . . . . . . . Crush 8 | . . 2 . 6 . . . Escape Stasis . | . . . . . . . . Rewire . | . . . . . . . . Trap . | . . . . . . . . Miscellaneous . | . . . . . . . . Route ------- -11/Scrapyard -10/Materials (discovered 2 exits: *Mat x2) -9/Materials (discovered 2 exits: *Mat / [*Min]) -8/Materials -7/Factory -7/Lower Caves -7/Lower Caves -7/Data Miner (discovered 1 exit: [*Pro]) History --------- Turn | Location | Event 29 | -11/Scrapyard | Discovered new exit (range 16) 120 | -11/Scrapyard | Entered Materials 262 | -10/Materials | Discovered new exit (range 9) 315 | -10/Materials | Build established: Mutant 331 | -10/Materials | Discovered new exit (range 14) 373 | -10/Materials | Entered another Materials area 373 | -9/Materials | Evolved 2 slots: Utility x2 485 | -9/Materials | Discovered new exit (range 16) 704 | -9/Materials | Discovered new exit (range 6) 718 | -9/Materials | Entered another Materials area 718 | -8/Materials | Evolved 2 slots: Weapon x2 740 | -8/Materials | Lost 4 parts (1p2n1w) 1066 | -8/Materials | Discovered new exit (range 8) 1163 | -8/Materials | Entered Factory 1163 | -7/Factory | Evolved 2 slots: Utility x2 1261 | -7/Factory | Build established: Hauler-Mutant 1582 | -7/Factory | Build established: Hauler-Tank 1596 | -7/Factory | Fabricated Hcp. Storage Unit (x1) 1909 | -7/Factory | Core integrity fell below 50% 1951 | -7/Factory | Lost 16 parts (1p7n2u6w) 2020 | -7/Factory | Discovered new exit (range 5) 2052 | -7/Factory | Entered Lower Caves 2349 | -7/Lower Caves | Identified exit to Lower Caves 2372 | -7/Lower Caves | Build established: Hauler-Mutant 2815 | -7/Lower Caves | Build established: Mutant 3272 | -7/Lower Caves | Attracted the attention of an 0b10 checkpoint 3311 | -7/Lower Caves | Lost 3 parts (1p1u1w) 3330 | -7/Lower Caves | Encountered a Warlord checkpoint 3459 | -7/Lower Caves | Entered another Lower Caves area 3548 | -7/Lower Caves | Attracted the attention of an 0b10 checkpoint 4000 | -7/Lower Caves | Encountered a Warlord checkpoint 4145 | -7/Lower Caves | Learned 4 Factory zone layouts 4217 | -7/Lower Caves | Discovered new exit (range 14) 4318 | -7/Lower Caves | Entered Data Miner 4318 | -7/Data Miner | Discovered new exit (range 6) 4334 | -7/Data Miner | Met Data Miner 4365 | -7/Data Miner | Learned location of Section 7 (-2) 4365 | -7/Data Miner | Acquired the access code to Warlord's prototype stash 4383 | -7/Data Miner | Received God Mode back door access code from Data Miner 4400 | -7/Data Miner | Destroyed Data Miner 4402 | -7/Data Miner | Interfaced with the Data Conduit 4406 | -7/Data Miner | Found Prototype Hackware 4408 | -7/Data Miner | Found Prototype Hackware 4411 | -7/Data Miner | Found Prototype Hackware 4418 | -7/Data Miner | Core integrity fell below 20% 4437 | -7/Data Miner | Destroyed by Enhanced Grunt with Neutron Cannon Last Messages --------------- Downloaded 709 prototype IDs. Downloaded central machine database. Downloaded 29 destinations. Downloaded encryption format records. Connection remotely terminated. [Achievement: Unlimited Data] 04404_ Acquired 10 matter. 04405_ Dropped System Shield. 04406_ Acquired Prototype Hackware. 04414_ Lgt. Nuclear Core destroyed. 04415_ Mni. Assault Cannon destroyed. 04418_ Discarded Enh. Optical Array. 04422_ Hrd. Light Armor Plating destroyed. 04422_ Dropped Med. Storage Unit. 04422_ Acquired Prototype Hackware. 04425_ Acquired Hrd. Light Armor Plating. 04433_ Critical hit. 04433_ Arm. Huge Wheel destroyed. 04435_ Flak Gun destroyed. 04437_ Hrd. Light Armor Plating destroyed. Map ----- +----------------------------------------------------+ | | | | | | | | | | | | | | | | | | | | | | | | | | | | | | | | | | | ????????????????????????????????????????????????? | | ????????????????????????????????????????????????? | | ????????????????????????????????????????????????? | | ????????????????????????????????????????????????? | | ?????????????????????????????????????####???????? | | ????#################?????##???????### #???????? | | ???##"""""""""""""""###### #??????## #???????? | | ??##""""""""" " """""; # # # ## < ##???????? | | ??#""""""""" @ ######??? | | ??#""""""" #??? | | ??#""""""" ggg #??? | | ??#""""""%= #??? | | ??#"""""" ! ! g ##??? | | ??#"""""""! """"""""""""""""#####???? | | ??#""""""" """"###############???????? | | ??##""""""" """""###?????????????????????? | | ???##""""""" "#####???????????????????????? | | ????########"## "#???????????????????????????? | | ???????????#"### "#???????????????????????????? | | ???????????#"### "#???????????????????????????? | | ???????????#"## "#???????????????????????????? | | ???????????#"## "#???????????????????????????? | | ????????????"# "#???????????????????????????? | | ?????????????### "#???????????????????????????? | | ???????????????# "##??????????????????????????? | | ??????????????## ""#??????????????????????????? | | ???????????#?## ""#??????????????????????????? | | ????????#"##"#"X ""#??????????????????????????? | | ????????#"""""" "#####??????????????????????? | | ????????##""""" X"""""#??????????????????????? | | ?????????###"#"X "##"##??????????????????????? | | ???????????#"## X""""#???????????????????????? | | ???????????#??## "##"#???????????????????????? | +----------------------------------------------------+ Best States ------------- Heat Dissipation 61 Energy Generation 15 Energy Capacity 250 Matter Stores 300 Matter Capacity 300 Sight Range 22 Robot Scan Range 16 Terrain Scan Density 10 EM Shielding 2 Armor Coverage 450 Power Shielding 33 Melee Speed Boost 20 Evasion (%) 40 Targeting Accuracy 8 Recoil Reduction 2 Item Schematics ----------------- Hcp. Storage Unit | -10/Materials | Hacked Combat Drone Bay | -7/Data Miner | Free Lgt. Regenerative Plating | -7/Data Miner | Free Triangulator | -7/Data Miner | Free Exp. Targeting Computer | -7/Data Miner | Free Exp. ECM Suite | -7/Data Miner | Free Kinetic Spear | -7/Data Miner | Free Robot Schematics ------------------ S-27 Virus | -7/Data Miner | Free G-50 Soldier | -7/Data Miner | Free G-67 Veteran | -7/Data Miner | Free L-41 Fighter | -7/Data Miner | Free H-66 Slayer | -7/Data Miner | Free P-70 Sage | -7/Data Miner | Free I-36 Angel | -7/Data Miner | Free I-47 Archangel | -7/Data Miner | Free Fabricated ------------ Hcp. Storage Unit | x1 | -7/Factory Alien Tech Used ----------------- None Achievements -------------- Unlimited Data Challenges ------------ None Game ------ Seed ResetChargeTriangulator Manual? 0 Play Time 00:33:28 Cumulative 104.4 hours Start 2021.01.03 @ 04:21:45 End 2021.01.03 @ 04:52:32 Sessions 1 Manual Loads 0 Difficulty Rogue Special Mode None Game No. 26 Rogue 26 Adventurer 0 Explorer 0 Win Type - Total 7 Types 4/1/1/1/0/0/0/0/0 Lore% 44 Gallery% 65 Achievement% 53 Wizard Run 0 Options --------- ASCII 0 Keyboard 0 Movement Numpad Keybinds 0 Fullscreen 1 Font 18/TerminusBold Map View 76x50 Tactical HUD 1 Map Filters NONE Filters NONE Steam 1 RUN: 49d6f206-6f7b-495d-9176-6bda51d6bd1d